[Event "45th FIDE Womens Olympiad 2024"]
[Site "Budapest"]
[Date "2024.09.14"]
[Round "4.72"]
[White "Hernandez Gil, Ineymig"]
[Black "Petricenco, Ana"]
[Result "1/2-1/2"]
[ECO "B51"]
[WhiteElo "2160"]
[BlackElo "1894"]
[Annotator "ChessBase"]
[PlyCount "94"]
[EventDate "2024.09.05"]
[EventType "team-tourn"]
[EventCountry "HUN"]
[SourceTitle "playchess.com"]
[Source "ChessBase"]
[SourceQuality "1"]
[WhiteTeam "Cuba"]
[BlackTeam "Moldova"]
[WhiteTeamCountry "CUB"]
[BlackTeamCountry "MDA"]
[TimeControl "40/5400+30:1800+30"]

1. e4 c5 2. Nf3 d6 3. Bb5+ Nd7 4. a4 Ngf6 5. Nc3 a6 6. Be2 b6 7. d4 cxd4 8. Nxd4 Bb7 9. O-O e6 10. f3 Be7 11. Kh1 O-O 12. Nb3 d5 13. exd5 Nxd5 14. Nxd5 Bxd5 15. c4 Bb7 16. Be3 a5 17. Nd4 Bc5 18. Qc1 Qe7 19. Rd1 Rfd8 20. b3 Rac8 21. Ra2 e5 22. Nf5 Qe6 23. Bxc5 Qxf5 24. Be7 Re8 25. Qg5 Qxg5 26. Bxg5 Nc5 27. Be3 Rcd8 28. Rad2 Rxd2 29. Rxd2 Nxb3 30. Rd6 Nd4 31. Bd3 Bc6 32. Kg1 Bxa4 33. Rxb6 Bc2 34. Bf1 h6 35. Rb2 Bg6 36. Rb7 a4 37. Ra7 Bc2 38. f4 Nf5 39. Bb6 e4 40. g4 Nh4 41. c5 e3 42. Be2 Be4 43. Rxa4 Bf3 44. Kf1 Bg2+ 45. Kg1 Bf3 46. Kf1 Bg2+ 47. Kg1 Bf3 1/2-1/2

[Event "45th FIDE Womens Olympiad 2024"]
[Site "Budapest"]
[Date "2024.09.14"]
[Round "4.73"]
[White "Theissl Pokorna, Regina"]
[Black "Noshin, Anjum"]
[Result "1-0"]
[ECO "C56"]
[WhiteElo "2302"]
[BlackElo "2085"]
[Annotator "ChessBase"]
[PlyCount "97"]
[EventDate "2024.09.05"]
[EventType "team-tourn"]
[EventCountry "HUN"]
[SourceTitle "playchess.com"]
[Source "ChessBase"]
[SourceQuality "1"]
[WhiteTeam "Austria"]
[BlackTeam "Bangladesh"]
[WhiteTeamCountry "AUT"]
[BlackTeamCountry "BAN"]
[TimeControl "40/5400+30:1800+30"]

1. e4 e5 2. Nf3 Nc6 3. d4 exd4 4. Bc4 Nf6 5. e5 d5 6. Bb5 Ne4 7. Nxd4 Bd7 8. Bxc6 bxc6 9. O-O Bc5 10. f3 Ng5 11. f4 Ne4 12. Be3 Qb8 13. b3 Qb6 14. Qd3 O-O 15. c3 a5 16. Nd2 Nxd2 17. Qxd2 Rfe8 18. Qf2 Qa6 19. Rad1 a4 20. b4 Bb6 21. Qg3 Qc4 22. f5 Qxc3 23. e6 Bxe6 24. fxe6 Rxe6 25. Bf2 Qxg3 26. hxg3 Bxd4 27. Bxd4 Rae8 28. Rf3 Re2 29. Rf2 Re1+ 30. Rxe1 Rxe1+ 31. Kh2 Rd1 32. Bc5 d4 33. Re2 h6 34. Re7 d3 35. Rxc7 Ra1 36. Rd7 Rxa2 37. Rxd3 f5 38. Rd6 Rc2 39. Rxc6 a3 40. Ra6 a2 41. Ra7 g5 42. Be7 Re2 43. Bf6 Re4 44. b5 Rb4 45. Rb7 Rb1 46. b6 a1=Q 47. Bxa1 Rxa1 48. Rc7 Rb1 49. b7 1-0

[Event "45th FIDE Womens Olympiad 2024"]
[Site "Budapest"]
[Date "2024.09.14"]
[Round "4.74"]
[White "Ahmed, Walijah"]
[Black "Exler, Veronika"]
[Result "1/2-1/2"]
[ECO "B12"]
[WhiteElo "1936"]
[BlackElo "2176"]
[Annotator "ChessBase"]
[PlyCount "61"]
[EventDate "2024.09.05"]
[EventType "team-tourn"]
[EventCountry "HUN"]
[SourceTitle "playchess.com"]
[Source "ChessBase"]
[SourceQuality "1"]
[WhiteTeam "Bangladesh"]
[BlackTeam "Austria"]
[WhiteTeamCountry "BAN"]
[BlackTeamCountry "AUT"]
[TimeControl "40/5400+30:1800+30"]

1. e4 c6 2. d4 d5 3. e5 c5 4. c3 Nc6 5. Be2 cxd4 6. cxd4 Bf5 7. Nf3 e6 8. O-O Nge7 9. Nc3 Bg4 10. Nh4 Bxe2 11. Nxe2 Ng6 12. Nf3 Be7 13. g3 Qb6 14. h4 h6 15. b3 Rc8 16. Be3 Ba3 17. Bc1 Qa5 18. Bxa3 Qxa3 19. Qd2 O-O 20. Kg2 Qb4 21. Rfd1 Rc7 22. Ne1 Nge7 23. Nd3 Qxd2 24. Rxd2 Nf5 25. Rc1 Rcc8 26. Ne1 Nb4 27. a3 Rxc1 28. Nxc1 Rc8 29. Ne2 Na6 30. Rc2 Rxc2 31. Nxc2 1/2-1/2

[Event "45th FIDE Womens Olympiad 2024"]
[Site "Budapest"]
[Date "2024.09.14"]
[Round "4.75"]
[White "Schloffer, Jasmin-Denise"]
[Black "Nusrat Jahan, Alo"]
[Result "1-0"]
[ECO "D45"]
[WhiteElo "2168"]
[BlackElo "2033"]
[Annotator "ChessBase"]
[PlyCount "77"]
[EventDate "2024.09.05"]
[EventType "team-tourn"]
[EventCountry "HUN"]
[SourceTitle "playchess.com"]
[Source "ChessBase"]
[SourceQuality "1"]
[WhiteTeam "Austria"]
[BlackTeam "Bangladesh"]
[WhiteTeamCountry "AUT"]
[BlackTeamCountry "BAN"]
[TimeControl "40/5400+30:1800+30"]

1. d4 d5 2. c4 e6 3. Nc3 c6 4. e3 Nf6 5. Nf3 Nbd7 6. Be2 Bd6 7. O-O O-O 8. b3 Ne4 9. Nxe4 dxe4 10. Nd2 f5 11. f4 c5 12. Bb2 b6 13. Nb1 Qc7 14. Na3 a6 15. Nc2 Nf6 16. Qd2 Bb7 17. a3 Rad8 18. Qc3 cxd4 19. Nxd4 Bc8 20. b4 e5 21. Nxf5 Bxf5 22. fxe5 Bg4 23. exd6 Rxd6 24. Rxf6 Rdxf6 25. Bxg4 Qf7 26. h3 h5 27. Be2 Rg6 28. Rf1 Qd7 29. Rxf8+ Kxf8 30. Bxh5 Rg5 31. Bg4 Qe7 32. Qd4 Rg6 33. Qe5 Qxe5 34. Bxe5 Rc6 35. c5 bxc5 36. bxc5 Kf7 37. Bd6 Ke8 38. Bf5 a5 39. Bxe4 1-0

[Event "45th FIDE Womens Olympiad 2024"]
[Site "Budapest"]
[Date "2024.09.14"]
[Round "4.76"]
[White "Wadifa, Ahmed"]
[Black "Hapala, Elisabeth"]
[Result "1/2-1/2"]
[ECO "B43"]
[WhiteElo "1988"]
[BlackElo "2113"]
[Annotator "NA"]
[PlyCount "89"]
[EventDate "2024.09.05"]
[EventType "team-tourn"]
[EventCountry "HUN"]
[SourceTitle "playchess.com"]
[Source "ChessBase"]
[SourceQuality "1"]
[WhiteTeam "Bangladesh"]
[BlackTeam "Austria"]
[WhiteTeamCountry "BAN"]
[BlackTeamCountry "AUT"]
[TimeControl "40/5400+30:1800+30"]

1. e4 c5 2. Nf3 e6 3. d4 cxd4 4. Nxd4 a6 5. Nc3 b5 6. Bd3 Bb7 7. O-O Nc6 8. Nxc6 Bxc6 9. Re1 Ne7 10. Bg5 f6 11. Bh4 Ng6 12. e5 Nxh4 13. Qh5+ g6 14. Qxh4 f5 15. Qxd8+ Rxd8 16. a4 b4 17. Nb1 a5 18. Nd2 Bc5 19. Nc4 Ra8 20. b3 g5 21. Rad1 h5 22. Bf1 h4 23. Nd6+ Ke7 24. Bb5 Bd5 25. Nxf5+ Kd8 26. Ne3 Bxe3 27. fxe3 Rc8 28. Bxd7 Kxd7 29. e4 Rxc2 30. exd5 Rf8 31. dxe6+ Kxe6 32. Rd6+ Ke7 33. Rg6 Rf5 34. e6 Rcc5 35. Rg7+ Ke8 36. e7 Rfe5 37. Rg8+ Kxe7 38. Rxe5+ Rxe5 39. Kf2 Kf6 40. Ra8 Kf5 41. Rc8 Ke4 42. Ke2 Kf4+ 43. Kf2 Ke4 44. Ke2 Kf4+ 45. Kf2 1/2-1/2

[Event "45th FIDE Womens Olympiad 2024"]
[Site "Budapest"]
[Date "2024.09.14"]
[Round "4.77"]
[White "Pipiras, Filipa Fortuna"]
[Black "Lakos, Nikoletta"]
[Result "1/2-1/2"]
[ECO "D31"]
[WhiteElo "2187"]
[BlackElo "2192"]
[Annotator "ChessBase"]
[PlyCount "62"]
[EventDate "2024.09.05"]
[EventType "team-tourn"]
[EventCountry "HUN"]
[SourceTitle "playchess.com"]
[Source "ChessBase"]
[SourceQuality "1"]
[WhiteTeam "Portugal"]
[BlackTeam "Hungary B"]
[WhiteTeamCountry "POR"]
[TimeControl "40/5400+30:1800+30"]

1. d4 d5 2. c4 e6 3. Nc3 Be7 4. cxd5 exd5 5. Bf4 c6 6. e3 Bf5 7. Nge2 Qb6 8. Qd2 Nf6 9. Ng3 Bg6 10. Be2 Nbd7 11. O-O O-O 12. Na4 Qb4 13. Qxb4 Bxb4 14. a3 Be7 15. b4 b5 16. Nc5 Nxc5 17. bxc5 a5 18. Rfc1 h6 19. a4 b4 20. Bd1 Ne4 21. Nxe4 Bxe4 22. Bb3 Bf6 23. Ra2 Rfe8 24. Rd2 Bf5 25. Re1 g5 26. Bd6 Kg7 27. Kf1 Bg6 28. Ke2 Ra7 29. Kd1 Be7 30. Bg3 Bf6 31. Bc2 Rb7 1/2-1/2

[Event "45th FIDE Womens Olympiad 2024"]
[Site "Budapest"]
[Date "2024.09.14"]
[Round "4.78"]
[White "Karacsonyi, Kata"]
[Black "Silva, Mariana"]
[Result "1-0"]
[ECO "B30"]
[WhiteElo "2233"]
[BlackElo "2005"]
[Annotator "ChessBase"]
[PlyCount "99"]
[EventDate "2024.09.05"]
[EventType "team-tourn"]
[EventCountry "HUN"]
[SourceTitle "playchess.com"]
[Source "ChessBase"]
[SourceQuality "1"]
[WhiteTeam "Hungary B"]
[BlackTeam "Portugal"]
[WhiteTeamCountry "HUN"]
[BlackTeamCountry "POR"]
[TimeControl "40/5400+30:1800+30"]

1. e4 c5 2. Nf3 Nc6 3. Bb5 Nf6 4. Nc3 g6 5. e5 Ng4 6. Bxc6 dxc6 7. h3 Nh6 8. O-O Bg7 9. d3 O-O 10. a4 a5 11. Be3 b6 12. d4 Nf5 13. dxc5 Nxe3 14. fxe3 bxc5 15. Qxd8 Rxd8 16. Ne4 Bf5 17. Nxc5 Bh6 18. Kf2 Bxc2 19. Rac1 Bf5 20. g4 Bc8 21. Rfd1 Rxd1 22. Rxd1 Be6 23. b3 Bg7 24. Nxe6 fxe6 25. Kg3 Rb8 26. Rd3 h6 27. h4 Rb4 28. Rc3 Re4 29. Rc5 Rxe3 30. Rxa5 Rxb3 31. Rc5 Ra3 32. a5 Kf7 33. Kf2 Ra4 34. g5 h5 35. Ke3 Ra3+ 36. Ke4 Ra4+ 37. Nd4 Ke8 38. Kd3 Ra3+ 39. Kc4 Ra4+ 40. Kc3 Kd7 41. Nxc6 Rxh4 42. a6 Kc7 43. Nd4+ Kb8 44. Nxe6 Bh8 45. Rb5+ Ka7 46. Nc7 Bxe5+ 47. Rxe5 Kb8 48. Nb5 Ra4 49. a7+ Ka8 50. Rxe7 1-0

[Event "45th FIDE Womens Olympiad 2024"]
[Site "Budapest"]
[Date "2024.09.14"]
[Round "4.79"]
[White "Duque, Raquel Dos Santos"]
[Black "Demeter, Dorina"]
[Result "1/2-1/2"]
[ECO "D02"]
[WhiteElo "1913"]
[BlackElo "2199"]
[Annotator "ChessBase"]
[PlyCount "88"]
[EventDate "2024.09.05"]
[EventType "team-tourn"]
[EventCountry "HUN"]
[SourceTitle "playchess.com"]
[Source "ChessBase"]
[SourceQuality "1"]
[WhiteTeam "Portugal"]
[BlackTeam "Hungary B"]
[WhiteTeamCountry "POR"]
[BlackTeamCountry "HUN"]
[TimeControl "40/5400+30:1800+30"]

1. d4 d5 2. Nf3 e6 3. g3 b6 4. Bg2 Bb7 5. O-O Nd7 6. a4 a5 7. c4 Ngf6 8. Bf4 dxc4 9. Qc2 Nd5 10. Bg5 f6 11. Bd2 Ba6 12. Re1 Rc8 13. Qe4 Qe7 14. Bh3 f5 15. Bxf5 exf5 16. Qxd5 Qe4 17. Qxe4+ fxe4 18. Ng5 Nf6 19. Nc3 Rd8 20. Bf4 Rd7 21. Rad1 Bb4 22. f3 Bb7 23. Be5 Bxc3 24. bxc3 Re7 25. fxe4 Bxe4 26. Nf3 Nd5 27. Nd2 Bc2 28. Ra1 Ne3 29. Bf4 O-O 30. Ra2 Bb3 31. Nxb3 cxb3 32. Rb2 Nc2 33. Rf1 Rxe2 34. Rxb3 Ne3 35. Bxe3 Rxe3 36. Rxf8+ Kxf8 37. Kf2 Re6 38. d5 Re4 39. d6 cxd6 40. Rxb6 Ke7 41. Rb7+ Kf6 42. Rd7 Rxa4 43. Rxd6+ Ke7 44. Ra6 Rc4 1/2-1/2

[Event "45th FIDE Womens Olympiad 2024"]
[Site "Budapest"]
[Date "2024.09.14"]
[Round "4.80"]
[White "Terbe, Zsuzsanna"]
[Black "Avelino, Camila Biscaya"]
[Result "1-0"]
[ECO "E73"]
[WhiteElo "2168"]
[BlackElo "1843"]
[Annotator "ChessBase"]
[PlyCount "81"]
[EventDate "2024.09.05"]
[EventType "team-tourn"]
[EventCountry "HUN"]
[SourceTitle "playchess.com"]
[Source "ChessBase"]
[SourceQuality "1"]
[WhiteTeam "Hungary B"]
[BlackTeam "Portugal"]
[WhiteTeamCountry "HUN"]
[BlackTeamCountry "POR"]
[TimeControl "40/5400+30:1800+30"]

1. d4 Nf6 2. c4 g6 3. Nc3 Bg7 4. e4 d6 5. Be2 O-O 6. Be3 Nbd7 7. h4 e5 8. d5 Nc5 9. Qc2 a5 10. h5 c6 11. h6 Bh8 12. Nf3 cxd5 13. cxd5 Ng4 14. Bxc5 dxc5 15. Nd2 Bf6 16. Nc4 Bh4 17. Bxg4 Bxg4 18. Nxe5 Bh5 19. O-O Bg5 20. f4 Bxh6 21. Nc4 Bg7 22. e5 f6 23. Qe4 fxe5 24. fxe5 Qg5 25. d6 Bg4 26. Qd5+ Kh8 27. Ne4 Qh4 28. Nxc5 Be2 29. Nd2 Bxf1 30. Rxf1 Rxf1+ 31. Nxf1 Rf8 32. Nd3 Qg5 33. Qe4 Qf5 34. Qxf5 gxf5 35. Ne3 f4 36. Nc4 Kg8 37. e6 Bd4+ 38. Kf1 b5 39. Nxa5 Rf6 40. d7 Bb6 41. e7 1-0

[Event "45th FIDE Womens Olympiad 2024"]
[Site "Budapest"]
[Date "2024.09.14"]
[Round "4.81"]
[White "Borosova, Zuzana"]
[Black "Perez Rodriguez, Jennifer"]
[Result "1/2-1/2"]
[ECO "C45"]
[WhiteElo "2205"]
[BlackElo "2224"]
[Annotator "NA RC"]
[PlyCount "33"]
[EventDate "2024.09.05"]
[EventType "team-tourn"]
[EventCountry "HUN"]
[SourceTitle "playchess.com"]
[Source "ChessBase"]
[SourceQuality "1"]
[WhiteTeam "Slovakia"]
[BlackTeam "Paraguay"]
[WhiteTeamCountry "SVK"]
[BlackTeamCountry "PAR"]
[TimeControl "40/5400+30:1800+30"]

1. e4 e5 2. Nf3 Nc6 3. d4 exd4 4. Nxd4 Nf6 5. Nxc6 bxc6 6. Bd3 d5 7. exd5 cxd5 8. O-O Be7 9. h3 O-O 10. Re1 c5 11. b3 Be6 12. Bb2 Rc8 13. Ba6 Rc6 14. Bb5 Rc8 15. Ba6 Rc6 16. Bb5 Rc8 17. Ba6 1/2-1/2

[Event "45th FIDE Womens Olympiad 2024"]
[Site "Budapest"]
[Date "2024.09.14"]
[Round "4.82"]
[White "Vargas, Gabriela"]
[Black "Repkova, Eva"]
[Result "0-1"]
[ECO "D05"]
[WhiteElo "2109"]
[BlackElo "2319"]
[Annotator "ChessBase"]
[PlyCount "132"]
[EventDate "2024.09.05"]
[EventType "team-tourn"]
[EventCountry "HUN"]
[SourceTitle "playchess.com"]
[Source "ChessBase"]
[SourceQuality "1"]
[WhiteTeam "Paraguay"]
[BlackTeam "Slovakia"]
[WhiteTeamCountry "PAR"]
[BlackTeamCountry "SVK"]
[TimeControl "40/5400+30:1800+30"]

1. d4 d5 2. Nf3 Nf6 3. e3 e6 4. Bd3 c5 5. b3 Nc6 6. O-O Bd6 7. Bb2 Qc7 8. c4 cxd4 9. exd4 O-O 10. Re1 Ne7 11. c5 Bf4 12. g3 Bh6 13. Ne5 Nc6 14. f4 Nxe5 15. fxe5 Ne4 16. Nc3 f5 17. Bxe4 dxe4 18. Nb5 Qc6 19. Nd6 Bd7 20. Bc1 e3 21. Qe2 f4 22. gxf4 Bxf4 23. Qg2 Qxg2+ 24. Kxg2 Bc6+ 25. Kg1 Bxe5 26. dxe5 Rf2 27. Rxe3 Raf8 28. Ne4 Rf1+ 29. Kg2 R1f4 30. Ba3 Bxe4+ 31. Rxe4 Rxe4 32. c6 bxc6 33. Bxf8 Kxf8 34. Rc1 Rxe5 35. Rxc6 a5 36. Kf3 Kf7 37. Rb6 g5 38. a4 h5 39. h3 Rc5 40. b4 axb4 41. Rxb4 Rc3+ 42. Kg2 h4 43. a5 Rg3+ 44. Kh2 Ra3 45. Rb7+ Kf6 46. Ra7 Ra2+ 47. Kg1 Ke5 48. a6 Kf4 49. Kf1 Kg3 50. Rg7 Ra5 51. a7 Kxh3 52. Rxg5 Rxa7 53. Kf2 Rf7+ 54. Kg1 Rf5 55. Rg6 e5 56. Rg8 e4 57. Rg7 Rf4 58. Rg2 Rg4 59. Kh1 Rg3 60. Re2 e3 61. Rf2 Kg4 62. Rf8 e2 63. Re8 Kf3 64. Kh2 Kf2 65. Re4 e1=Q 66. Re2+ Qxe2 0-1

[Event "45th FIDE Womens Olympiad 2024"]
[Site "Budapest"]
[Date "2024.09.14"]
[Round "4.83"]
[White "Mrvova, Alena"]
[Black "Montiel Caceres, Helen"]
[Result "1/2-1/2"]
[ECO "B30"]
[WhiteElo "2121"]
[BlackElo "1864"]
[Annotator "ChessBase"]
[PlyCount "147"]
[EventDate "2024.09.05"]
[EventType "team-tourn"]
[EventCountry "HUN"]
[SourceTitle "playchess.com"]
[Source "ChessBase"]
[SourceQuality "1"]
[WhiteTeam "Slovakia"]
[BlackTeam "Paraguay"]
[WhiteTeamCountry "SVK"]
[BlackTeamCountry "PAR"]
[TimeControl "40/5400+30:1800+30"]

1. e4 c5 2. Nf3 e6 3. d3 Nc6 4. g3 d6 5. Bg2 Nf6 6. O-O Be7 7. c3 O-O 8. Qe2 b5 9. d4 Rb8 10. e5 Nd5 11. dxc5 dxc5 12. Nbd2 Qc7 13. Re1 a5 14. a4 Ba6 15. Qe4 bxa4 16. Rxa4 Nb6 17. Ra1 Rfd8 18. Bf1 Bxf1 19. Nxf1 Qd7 20. Ng5 Bxg5 21. Bxg5 Re8 22. Be3 Qd5 23. Qxd5 Nxd5 24. Bc1 Red8 25. Nd2 Nb6 26. f4 Rd5 27. Kf2 h6 28. Ke2 Rbd8 29. Ne4 Rb8 30. Rd1 Kf8 31. Rxd5 Nxd5 32. Nxc5 Ke7 33. Kd3 f6 34. exf6+ gxf6 35. b3 Rd8 36. Kc4 h5 37. Kb5 Rc8 38. Na4 Nxc3+ 39. Kb6 Nd5+ 40. Ka6 Ndb4+ 41. Kb6 Nd4 42. Ba3 Nxb3 43. Rd1 Rd8 44. Rxd8 Kxd8 45. Kb5 Ke8 46. Nc3 Kf7 47. Ne4 Nd3 48. Kc4 Ndc1 49. Kc3 a4 50. Kb4 Nd3+ 51. Kxa4 Nd4 52. Nc5 Nxc5+ 53. Bxc5 Nf3 54. h3 Nd2 55. Bf2 Ne4 56. Be1 Nc5+ 57. Kb5 Nd3 58. Bc3 Nf2 59. h4 Ne4 60. Be1 Kg6 61. Kc4 Kf5 62. Kd4 Nd6 63. Bb4 Nb5+ 64. Kc5 Nc7 65. Kd6 Nd5 66. Bd2 Nb6 67. Kc5 Nd7+ 68. Kd6 Nf8 69. Ke7 Ng6+ 70. Kf7 e5 71. fxe5 fxe5 72. g4+ Kxg4 73. Kxg6 Kxh4 74. Kf5 1/2-1/2

[Event "45th FIDE Womens Olympiad 2024"]
[Site "Budapest"]
[Date "2024.09.14"]
[Round "4.84"]
[White "Oviedo Acosta, Paula"]
[Black "Walter, Ema"]
[Result "1-0"]
[ECO "C68"]
[WhiteElo "1790"]
[BlackElo "2055"]
[Annotator "NA"]
[PlyCount "83"]
[EventDate "2024.09.05"]
[EventType "team-tourn"]
[EventCountry "HUN"]
[SourceTitle "playchess.com"]
[Source "ChessBase"]
[SourceQuality "1"]
[WhiteTeam "Paraguay"]
[BlackTeam "Slovakia"]
[WhiteTeamCountry "PAR"]
[BlackTeamCountry "SVK"]
[TimeControl "40/5400+30:1800+30"]

1. e4 e5 2. Nf3 Nc6 3. Bb5 a6 4. Bxc6 dxc6 5. O-O f6 6. d4 exd4 7. Qxd4 Bd6 8. e5 Bxe5 9. Qxd8+ Kxd8 10. Nxe5 fxe5 11. Re1 Bf5 12. Rxe5 Bxc2 13. Na3 Bg6 14. Bg5+ Kc8 15. Nc4 h6 16. Bh4 b6 17. Re6 Bf7 18. Rxc6 Bd5 19. Nxb6+ Kb7 20. Rc5 Kxb6 21. Rxd5 g5 22. Bg3 Nf6 23. Rf5 Ne4 24. Be5 Rh7 25. f3 Nd6 26. Rf6 Rd8 27. Rd1 Kc6 28. Bg3 Rdd7 29. Kf2 Kc5 30. Rc1+ Kb5 31. Bxd6 cxd6 32. Ke3 Rhe7+ 33. Kd3 Re5 34. Rc2 h5 35. Kd4 g4 36. Rxd6 Rxd6+ 37. Kxe5 Rd1 38. fxg4 hxg4 39. Kf4 Rd4+ 40. Kg3 a5 41. h3 gxh3 42. Kxh3 1-0

[Event "45th FIDE Womens Olympiad 2024"]
[Site "Budapest"]
[Date "2024.09.14"]
[Round "4.85"]
[White "Shuqja, Klean"]
[Black "Cramling, Pia"]
[Result "0-1"]
[ECO "B22"]
[WhiteElo "2042"]
[BlackElo "2425"]
[Annotator "ChessBase"]
[PlyCount "100"]
[EventDate "2024.09.05"]
[EventType "team-tourn"]
[EventCountry "HUN"]
[SourceTitle "playchess.com"]
[Source "ChessBase"]
[SourceQuality "1"]
[WhiteTeam "Albania"]
[BlackTeam "Sweden"]
[WhiteTeamCountry "ALB"]
[BlackTeamCountry "SWE"]
[TimeControl "40/5400+30:1800+30"]

1. e4 c5 2. Nf3 e6 3. c3 Nf6 4. e5 Nd5 5. d4 cxd4 6. cxd4 d6 7. Bc4 Nb6 8. Bd3 Bd7 9. O-O Bc6 10. Qe2 Bxf3 11. Qxf3 Nc6 12. Bb5 d5 13. Qg4 h5 14. Qg5 Rc8 15. Qxd8+ Kxd8 16. Be3 a6 17. Be2 Be7 18. Nd2 Kd7 19. Rac1 g6 20. Rfd1 Na4 21. Rb1 b5 22. Nb3 Rc7 23. f4 Na7 24. Bd3 Nc8 25. Nd2 Ncb6 26. a3 Rb8 27. Re1 Nc4 28. b3 Nxe3 29. bxa4 Nc2 30. Bxc2 Rxc2 31. Nf3 Bxa3 32. axb5 axb5 33. Re3 Rc1+ 34. Re1 Rxe1+ 35. Nxe1 Be7 36. Nd3 b4 37. Rb3 Rc8 38. Kf2 Rc4 39. Ke3 Kc6 40. Rb2 Kb5 41. Ra2 Rc7 42. g3 b3 43. Ra8 Kc4 44. Rb8 Kc3 45. h3 Rc4 46. g4 hxg4 47. hxg4 Bb4 48. f5 Rxd4 49. Nc1 Re4+ 50. Kf3 b2 0-1

[Event "45th FIDE Womens Olympiad 2024"]
[Site "Budapest"]
[Date "2024.09.14"]
[Round "4.86"]
[White "Agrest, Inna"]
[Black "Geske, Bruna"]
[Result "1-0"]
[ECO "B33"]
[WhiteElo "2197"]
[BlackElo "2023"]
[Annotator "ChessBase"]
[PlyCount "103"]
[EventDate "2024.09.05"]
[EventType "team-tourn"]
[EventCountry "HUN"]
[SourceTitle "playchess.com"]
[Source "ChessBase"]
[SourceQuality "1"]
[WhiteTeam "Sweden"]
[BlackTeam "Albania"]
[WhiteTeamCountry "SWE"]
[BlackTeamCountry "ALB"]
[TimeControl "40/5400+30:1800+30"]

1. e4 c5 2. Nf3 Nc6 3. d4 cxd4 4. Nxd4 Nf6 5. Nc3 e5 6. Ndb5 d6 7. Nd5 Nxd5 8. exd5 Nb8 9. a4 Be7 10. Be2 O-O 11. O-O f5 12. b4 f4 13. a5 Nd7 14. c4 e4 15. Ra3 Ne5 16. Nd4 Qe8 17. Re1 Bh4 18. g3 f3 19. Bf1 Qg6 20. Qc2 Bxg3 21. hxg3 Ng4 22. Rxe4 Qh5 23. Rxg4 Bxg4 24. Qd2 h6 25. Re3 Rae8 26. Qd3 Qf7 27. Bb2 h5 28. Ne6 Bxe6 29. dxe6 Rxe6 30. Rxe6 Qxe6 31. Qd4 Qg6 32. Bd3 Qh6 33. b5 h4 34. Qxh4 Qxh4 35. gxh4 Rf4 36. Kh2 Rxh4+ 37. Kg3 g5 38. Kxf3 Kf7 39. Be4 Ke6 40. Bd4 Rh3+ 41. Kg2 Ra3 42. Bxa7 Rxa5 43. Be3 Ra4 44. Bd5+ Kf5 45. Kg3 g4 46. b6 Rb4 47. Bxb7 Rxc4 48. Ba6 Rb4 49. b7 Rb3 50. Kg2 d5 51. Ba7 g3 52. fxg3 1-0

[Event "45th FIDE Womens Olympiad 2024"]
[Site "Budapest"]
[Date "2024.09.14"]
[Round "4.87"]
[White "Caku, Kler"]
[Black "Cramling Bellon, Anna"]
[Result "0-1"]
[ECO "B33"]
[WhiteElo "1859"]
[BlackElo "2066"]
[Annotator "ChessBase"]
[PlyCount "90"]
[EventDate "2024.09.05"]
[EventType "team-tourn"]
[EventCountry "HUN"]
[SourceTitle "playchess.com"]
[Source "ChessBase"]
[SourceQuality "1"]
[WhiteTeam "Albania"]
[BlackTeam "Sweden"]
[WhiteTeamCountry "ALB"]
[BlackTeamCountry "SWE"]
[TimeControl "40/5400+30:1800+30"]

1. e4 c5 2. Nf3 e6 3. d4 cxd4 4. Nxd4 Nf6 5. Nc3 Nc6 6. Ndb5 d6 7. Bf4 e5 8. Bg5 a6 9. Na3 b5 10. Nd5 Be7 11. Bxf6 Bxf6 12. c3 Bg5 13. Nc2 O-O 14. Be2 Be6 15. Nce3 Ne7 16. Nxe7+ Qxe7 17. Qd3 Bxe3 18. Qxe3 d5 19. Bd3 d4 20. Qg3 Qc5 21. O-O dxc3 22. bxc3 Qxc3 23. Rfd1 Rfd8 24. Rac1 Qa3 25. Bb1 Qa4 26. Re1 Qd4 27. h4 Rac8 28. Qa3 Rxc1 29. Rxc1 Qd2 30. Qe3 Qxe3 31. fxe3 Kf8 32. a3 Rd2 33. Kh2 Rb2 34. Bc2 Ra2 35. a4 b4 36. Bd1 b3 37. Rb1 Rxa4 38. Bxb3 Rb4 39. Bc2 Rxb1 40. Bxb1 a5 41. Bc2 Ke7 42. Kg1 Kd6 43. Kf2 Kc5 44. Ke2 Kb4 45. Kd2 Bb3 0-1

[Event "45th FIDE Womens Olympiad 2024"]
[Site "Budapest"]
[Date "2024.09.14"]
[Round "4.88"]
[White "Valcu, Lavinia"]
[Black "Omeri, Eklea"]
[Result "1-0"]
[ECO "B01"]
[WhiteElo "2076"]
[BlackElo "1962"]
[Annotator "NA"]
[PlyCount "53"]
[EventDate "2024.09.05"]
[EventType "team-tourn"]
[EventCountry "HUN"]
[SourceTitle "playchess.com"]
[Source "ChessBase"]
[SourceQuality "1"]
[WhiteTeam "Sweden"]
[BlackTeam "Albania"]
[WhiteTeamCountry "SWE"]
[BlackTeamCountry "ALB"]
[TimeControl "40/5400+30:1800+30"]

1. e4 d5 2. exd5 Qxd5 3. Nc3 Qd6 4. d4 c6 5. Nf3 Bg4 6. Bc4 e6 7. Be3 Nf6 8. Qd2 Bxf3 9. gxf3 Nbd7 10. O-O-O Nb6 11. Bb3 Qc7 12. Ne4 a5 13. Bf4 Qd7 14. a3 Nbd5 15. Be5 b5 16. Rhg1 Nxe4 17. fxe4 Ne7 18. Bxg7 Bxg7 19. Rxg7 a4 20. Ba2 Ng6 21. d5 cxd5 22. exd5 e5 23. d6 Rf8 24. Rxh7 Nf4 25. Qe3 Ng6 26. f4 Rc8 27. fxe5 1-0

[Event "45th FIDE Womens Olympiad 2024"]
[Site "Budapest"]
[Date "2024.09.14"]
[Round "4.89"]
[White "Varela La Madrid, Tilsia Carolina"]
[Black "Dolgova, Olga"]
[Result "1-0"]
[ECO "B19"]
[WhiteElo "2017"]
[BlackElo "2171"]
[Annotator "ChessBase"]
[PlyCount "51"]
[EventDate "2024.09.05"]
[EventType "team-tourn"]
[EventCountry "HUN"]
[SourceTitle "playchess.com"]
[Source "ChessBase"]
[SourceQuality "1"]
[WhiteTeam "Venezuela"]
[BlackTeam "Norway"]
[WhiteTeamCountry "VEN"]
[BlackTeamCountry "NOR"]
[TimeControl "40/5400+30:1800+30"]

1. e4 c6 2. d4 d5 3. Nc3 dxe4 4. Nxe4 Bf5 5. Ng3 Bg6 6. h4 h6 7. Nf3 e6 8. h5 Bh7 9. Bd3 Bxd3 10. Qxd3 Nf6 11. Bd2 Be7 12. O-O-O c5 13. Ne4 cxd4 14. Nxd4 Nbd7 15. Rh3 Nxe4 16. Qxe4 Nc5 17. Qg4 Bf6 18. Bb4 Qb6 19. Nb3 Na4 20. Ba3 Qb5 21. Re3 e5 22. Nd4 Qa6 23. Nf5 Rd8 24. Red3 Rxd3 25. Rxd3 b5 26. Nxg7+ 1-0